[Event "Titled Tuesday Blitz July 27 2021"]
[White "Khusnutdinov, Rustam"]
[Black "Madaminov, Mukhiddin"]
[WhiteFideId "13701703"]
[BlackFideId "14210703"]
[WhiteElo "2571"]
[BlackElo "1747"]
[Result "0-1"]
[Round "09"]
[TimeControl "180+1"]
[Date "2021.07.27"]
[WhiteClock "0:00:34"]
[BlackClock "0:00:14"]

1. d4 {[%clk 0:03:00]}  Nf6 {[%clk 0:03:00]} 2. c4 {[%clk 0:03:00]}  e6 {[%clk 0:03:00]} 3. Nc3 {[%clk 0:03:00]}  Bb4 {[%clk 0:03:01]} 4. g3 {[%clk 0:03:00]}  d5 {[%clk 0:02:58]} 5. Bg2 {[%clk 0:02:59]}  dxc4 {[%clk 0:02:56]} 6. Nf3 {[%clk 0:02:59]}  c5 {[%clk 0:02:55]} 7. O-O {[%clk 0:02:57]}  O-O {[%clk 0:02:54]} 8. dxc5 {[%clk 0:02:48]}  Nc6 {[%clk 0:02:51]} 9. Qa4 {[%clk 0:02:42]}  Bxc5 {[%clk 0:02:49]} 10. Qxc4 {[%clk 0:02:41]}  Qe7 {[%clk 0:02:38]} 11. Bg5 {[%clk 0:02:40]}  Bb6 {[%clk 0:02:34]} 12. Ne4 {[%clk 0:02:37]}  e5 {[%clk 0:02:27]} 13. e3 {[%clk 0:01:52]}  Be6 {[%clk 0:02:17]} 14. Qa4 {[%clk 0:01:51]}  Rfd8 {[%clk 0:02:06]} 15. Rfd1 {[%clk 0:01:45]}  Bf5 {[%clk 0:01:50]} 16. Nh4 {[%clk 0:01:44]}  Bxe4 {[%clk 0:01:43]} 17. Bxe4 {[%clk 0:01:42]}  h6 {[%clk 0:01:39]} 18. Nf5 {[%clk 0:01:31]}  Qe6 {[%clk 0:01:35]} 19. Bxf6 {[%clk 0:01:22]}  Qxf6 {[%clk 0:01:36]} 20. a3 {[%clk 0:01:09]}  h5 {[%clk 0:01:32]} 21. Qb3 {[%clk 0:01:05]}  g6 {[%clk 0:01:27]} 22. Nh4 {[%clk 0:01:04]}  Kg7 {[%clk 0:01:24]} 23. Kg2 {[%clk 0:01:05]}  Rac8 {[%clk 0:01:22]} 24. Nf3 {[%clk 0:01:03]}  Kh6 {[%clk 0:00:38]} 25. h4 {[%clk 0:01:01]}  Kg7 {[%clk 0:00:37]} 26. Ng5 {[%clk 0:01:00]}  Na5 {[%clk 0:00:36]} 27. Qa2 {[%clk 0:01:00]}  Nc6 {[%clk 0:00:31]} 28. Rd5 {[%clk 0:00:55]}  Rxd5 {[%clk 0:00:26]} 29. Bxd5 {[%clk 0:00:56]}  Ne7 {[%clk 0:00:27]} 30. Be4 {[%clk 0:00:52]}  Nf5 {[%clk 0:00:23]} 31. Qb3 {[%clk 0:00:50]}  Nd6 {[%clk 0:00:21]} 32. Rd1 {[%clk 0:00:50]}  Nxe4 {[%clk 0:00:21]} 33. Nxe4 {[%clk 0:00:51]}  Qc6 {[%clk 0:00:21]} 34. Qd5 {[%clk 0:00:51]}  Qxd5 {[%clk 0:00:18]} 35. Rxd5 {[%clk 0:00:51]}  Rc2 {[%clk 0:00:19]} 36. Kf3 {[%clk 0:00:52]}  Rxb2 {[%clk 0:00:19]} 37. Rd7 {[%clk 0:00:52]}  Kf8 {[%clk 0:00:14]} 38. Rxb7 {[%clk 0:00:49]}  f5 {[%clk 0:00:14]} 39. Ng5 {[%clk 0:00:45]}  e4+ {[%clk 0:00:13]} 40. Kf4 {[%clk 0:00:36]}  Bxe3+ {[%clk 0:00:13]} 41. fxe3 {[%clk 0:00:33]}  Rxb7 {[%clk 0:00:14]} 42. Ke5 {[%clk 0:00:33]}  Kg7 {[%clk 0:00:13]} 43. Ne6+ {[%clk 0:00:33]}  Kh6 {[%clk 0:00:14]} 44. Nf4 {[%clk 0:00:34]}  Rb3 {[%clk 0:00:14]} 0-1


[Site "https://www.chess.com"]

[Event "Titled Tuesday Blitz July 27 2021"]
[White "Krysa, Leandro"]
[Black "Ahmadzada, Ahmad"]
[WhiteFideId "116807"]
[BlackFideId "13413007"]
[WhiteElo "2490"]
[BlackElo "2226"]
[Result "1-0"]
[Round "09"]
[TimeControl "180+1"]
[Date "2021.07.27"]
[WhiteClock "0:00:05"]
[BlackClock "0:00:02"]

1. e4 {[%clk 0:03:00]}  d5 {[%clk 0:02:58]} 2. exd5 {[%clk 0:03:00]}  Qxd5 {[%clk 0:02:59]} 3. Nf3 {[%clk 0:03:00]}  Nf6 {[%clk 0:02:59]} 4. Be2 {[%clk 0:02:59]}  Nc6 {[%clk 0:02:53]} 5. d4 {[%clk 0:02:57]}  Bg4 {[%clk 0:02:51]} 6. c4 {[%clk 0:02:55]}  Qh5 {[%clk 0:02:34]} 7. d5 {[%clk 0:02:46]}  O-O-O {[%clk 0:02:08]} 8. Qa4 {[%clk 0:02:43]}  Ne5 {[%clk 0:02:06]} 9. Qxa7 {[%clk 0:02:04]}  Nxf3+ {[%clk 0:02:05]} 10. gxf3 {[%clk 0:02:04]}  Bxf3 {[%clk 0:02:03]} 11. Qa8+ {[%clk 0:01:44]}  Kd7 {[%clk 0:02:02]} 12. Qxb7 {[%clk 0:01:36]}  Bxe2 {[%clk 0:01:13]} 13. Nc3 {[%clk 0:01:22]}  Bxc4 {[%clk 0:00:52]} 14. Qc6+ {[%clk 0:01:15]}  Kc8 {[%clk 0:00:52]} 15. Bf4 {[%clk 0:00:40]}  e5 {[%clk 0:00:05]} 16. dxe6 {[%clk 0:00:38]}  Qa5 {[%clk 0:00:04]} 17. Qxc4 {[%clk 0:00:34]}  fxe6 {[%clk 0:00:04]} 18. O-O {[%clk 0:00:30]}  Bd6 {[%clk 0:00:04]} 19. Bg3 {[%clk 0:00:22]}  Nd5 {[%clk 0:00:03]} 20. Nb5 {[%clk 0:00:20]}  Bxg3 {[%clk 0:00:02]} 21. hxg3 {[%clk 0:00:20]}  Rd7 {[%clk 0:00:03]} 22. Rac1 {[%clk 0:00:18]}  Rhd8 {[%clk 0:00:03]} 23. Rfe1 {[%clk 0:00:17]}  Qb6 {[%clk 0:00:02]} 24. Qa4 {[%clk 0:00:14]}  Kb8 {[%clk 0:00:02]} 25. Nd4 {[%clk 0:00:13]}  Ne7 {[%clk 0:00:01]} 26. Nxe6 {[%clk 0:00:11]}  Rd2 {[%clk 0:00:02]} 27. Qf4 {[%clk 0:00:08]}  R8d6 {[%clk 0:00:01]} 28. Nxc7 {[%clk 0:00:07]}  Ng6 {[%clk 0:00:02]} 29. Re8+ {[%clk 0:00:05]}  Kb7 {[%clk 0:00:02]} 30. Qf3+ {[%clk 0:00:05]}  Rc6 {[%clk 0:00:01]} 31. Rxc6 {[%clk 0:00:05]}  Qxc6 {[%clk 0:00:02]} 32. Rb8+ {[%clk 0:00:05]}  Kxc7 {[%clk 0:00:02]} 33. Rc8+ {[%clk 0:00:05]} 1-0


[Site "https://www.chess.com"]

[Event "Titled Tuesday Blitz July 27 2021"]
[White "Le, Tuan Minh"]
[Black "Mekhitarian, Krikor Sevag"]
[WhiteFideId "12401153"]
[BlackFideId "2107660"]
[WhiteElo "2450"]
[BlackElo "2598"]
[Result "0-1"]
[Round "09"]
[TimeControl "180+1"]
[Date "2021.07.27"]
[WhiteClock "0:00:03"]
[BlackClock "0:00:04"]

1. d4 {[%clk 0:03:00]}  Nf6 {[%clk 0:02:59]} 2. Nf3 {[%clk 0:03:00]}  d5 {[%clk 0:02:58]} 3. Bg5 {[%clk 0:03:00]}  Ne4 {[%clk 0:02:57]} 4. Bf4 {[%clk 0:03:00]}  c5 {[%clk 0:02:55]} 5. c3 {[%clk 0:03:00]}  Nc6 {[%clk 0:02:50]} 6. e3 {[%clk 0:03:00]}  Qb6 {[%clk 0:02:49]} 7. Qb3 {[%clk 0:02:57]}  c4 {[%clk 0:02:50]} 8. Qc2 {[%clk 0:02:56]}  Bf5 {[%clk 0:02:49]} 9. Qc1 {[%clk 0:02:40]}  f6 {[%clk 0:02:47]} 10. h3 {[%clk 0:02:39]}  e5 {[%clk 0:02:41]} 11. Bh2 {[%clk 0:02:23]}  exd4 {[%clk 0:02:10]} 12. exd4 {[%clk 0:02:20]}  g5 {[%clk 0:02:02]} 13. Nbd2 {[%clk 0:02:16]}  h5 {[%clk 0:02:02]} 14. Nxe4 {[%clk 0:02:11]}  Bxe4 {[%clk 0:02:03]} 15. Nd2 {[%clk 0:02:08]}  Bg6 {[%clk 0:01:59]} 16. Be2 {[%clk 0:02:04]}  Bh6 {[%clk 0:01:38]} 17. Nf1 {[%clk 0:01:29]}  O-O {[%clk 0:01:23]} 18. Ne3 {[%clk 0:01:29]}  Ne7 {[%clk 0:01:23]} 19. O-O {[%clk 0:01:25]}  Rad8 {[%clk 0:01:17]} 20. b3 {[%clk 0:01:18]}  cxb3 {[%clk 0:01:15]} 21. axb3 {[%clk 0:01:19]}  a6 {[%clk 0:01:16]} 22. Qd1 {[%clk 0:01:17]}  h4 {[%clk 0:01:13]} 23. Re1 {[%clk 0:01:17]}  Bg7 {[%clk 0:00:58]} 24. Bd3 {[%clk 0:01:00]}  f5 {[%clk 0:00:58]} 25. b4 {[%clk 0:00:55]}  f4 {[%clk 0:00:56]} 26. Ng4 {[%clk 0:00:55]}  Bxd3 {[%clk 0:00:36]} 27. Qxd3 {[%clk 0:00:56]}  Nf5 {[%clk 0:00:35]} 28. Kh1 {[%clk 0:00:51]}  Qc7 {[%clk 0:00:26]} 29. Rac1 {[%clk 0:00:43]}  Qc4 {[%clk 0:00:24]} 30. Qf3 {[%clk 0:00:41]}  Rde8 {[%clk 0:00:19]} 31. Bg1 {[%clk 0:00:42]}  Qc6 {[%clk 0:00:17]} 32. Qd3 {[%clk 0:00:38]}  Re4 {[%clk 0:00:15]} 33. f3 {[%clk 0:00:36]}  Ng3+ {[%clk 0:00:15]} 34. Kh2 {[%clk 0:00:36]}  Rxe1 {[%clk 0:00:16]} 35. Rxe1 {[%clk 0:00:36]}  Re8 {[%clk 0:00:17]} 36. Bf2 {[%clk 0:00:25]}  Rxe1 {[%clk 0:00:16]} 37. Bxe1 {[%clk 0:00:26]}  Qe6 {[%clk 0:00:17]} 38. Bf2 {[%clk 0:00:20]}  b5 {[%clk 0:00:17]} 39. Qb1 {[%clk 0:00:18]}  Kf7 {[%clk 0:00:17]} 40. Qh7 {[%clk 0:00:17]}  Kf8 {[%clk 0:00:14]} 41. Qc2 {[%clk 0:00:15]}  Kf7 {[%clk 0:00:14]} 42. Qb1 {[%clk 0:00:15]}  Qg6 {[%clk 0:00:12]} 43. Qa1 {[%clk 0:00:14]}  Qc6 {[%clk 0:00:08]} 44. Bxg3 {[%clk 0:00:13]}  fxg3+ {[%clk 0:00:07]} 45. Kg1 {[%clk 0:00:12]}  Qe6 {[%clk 0:00:08]} 46. Qb1 {[%clk 0:00:11]}  Ke7 {[%clk 0:00:07]} 47. Kf1 {[%clk 0:00:11]}  Kd7 {[%clk 0:00:08]} 48. Qh7 {[%clk 0:00:10]}  Qe7 {[%clk 0:00:06]} 49. Qf5+ {[%clk 0:00:10]}  Kc6 {[%clk 0:00:06]} 50. Qd3 {[%clk 0:00:10]}  Kb6 {[%clk 0:00:06]} 51. Ne3 {[%clk 0:00:10]}  Qe6 {[%clk 0:00:06]} 52. Ke2 {[%clk 0:00:11]}  Bf8 {[%clk 0:00:04]} 53. Qf5 {[%clk 0:00:09]}  Qxf5 {[%clk 0:00:04]} 54. Nxf5 {[%clk 0:00:10]}  Kc6 {[%clk 0:00:04]} 55. Kd3 {[%clk 0:00:10]}  Kd7 {[%clk 0:00:04]} 56. Ke2 {[%clk 0:00:09]}  Ke6 {[%clk 0:00:04]} 57. Ne3 {[%clk 0:00:10]}  Bd6 {[%clk 0:00:05]} 58. Nc2 {[%clk 0:00:10]}  Bc7 {[%clk 0:00:05]} 59. Ne1 {[%clk 0:00:10]}  Bf4 {[%clk 0:00:05]} 60. Nd3 {[%clk 0:00:10]}  Bd6 {[%clk 0:00:05]} 61. Nc5+ {[%clk 0:00:10]}  Bxc5 {[%clk 0:00:04]} 62. dxc5 {[%clk 0:00:09]}  Kd7 {[%clk 0:00:03]} 63. Ke3 {[%clk 0:00:09]}  Kc7 {[%clk 0:00:02]} 64. f4 {[%clk 0:00:09]}  g4 {[%clk 0:00:02]} 65. hxg4 {[%clk 0:00:02]}  a5 {[%clk 0:00:02]} 66. bxa5 {[%clk 0:00:02]}  b4 {[%clk 0:00:02]} 67. a6 {[%clk 0:00:03]}  h3 {[%clk 0:00:03]} 68. a7 {[%clk 0:00:03]}  hxg2 {[%clk 0:00:03]} 69. c6 {[%clk 0:00:04]}  g1=Q+ {[%clk 0:00:04]} 70. Kf3 {[%clk 0:00:03]}  Qf2# {[%clk 0:00:04]} 0-1


[Site "https://www.chess.com"]

[Event "Titled Tuesday Blitz July 27 2021"]
[White "Muradli, Mahammad"]
[Black "Ismagilov, Damir"]
[WhiteFideId "13409301"]
[BlackFideId "34199982"]
[WhiteElo "2482"]
[BlackElo "2075"]
[Result "0-1"]
[Round "09"]
[TimeControl "180+1"]
[Date "2021.07.27"]
[WhiteClock "0:00:01"]
[BlackClock "0:00:17"]

1. Nf3 {[%clk 0:02:58]}  Nf6 {[%clk 0:02:57]} 2. d4 {[%clk 0:02:58]}  d5 {[%clk 0:02:57]} 3. c4 {[%clk 0:02:56]}  dxc4 {[%clk 0:02:57]} 4. e3 {[%clk 0:02:55]}  e6 {[%clk 0:02:57]} 5. Bxc4 {[%clk 0:02:55]}  c5 {[%clk 0:02:57]} 6. O-O {[%clk 0:02:55]}  a6 {[%clk 0:02:57]} 7. dxc5 {[%clk 0:02:55]}  Bxc5 {[%clk 0:02:57]} 8. Qxd8+ {[%clk 0:02:51]}  Kxd8 {[%clk 0:02:58]} 9. Be2 {[%clk 0:02:52]}  Ke7 {[%clk 0:02:58]} 10. Nfd2 {[%clk 0:02:44]}  Bd7 {[%clk 0:02:42]} 11. Nb3 {[%clk 0:02:41]}  Bd6 {[%clk 0:02:40]} 12. f3 {[%clk 0:02:40]}  Nc6 {[%clk 0:02:37]} 13. e4 {[%clk 0:02:40]}  Nb4 {[%clk 0:02:24]} 14. Na3 {[%clk 0:02:40]}  b5 {[%clk 0:02:23]} 15. Be3 {[%clk 0:02:32]}  Rhc8 {[%clk 0:02:13]} 16. Rfd1 {[%clk 0:02:33]}  e5 {[%clk 0:01:41]} 17. Rd2 {[%clk 0:02:13]}  Be6 {[%clk 0:01:40]} 18. Na5 {[%clk 0:02:11]}  Rab8 {[%clk 0:01:18]} 19. Rad1 {[%clk 0:02:07]}  Ne8 {[%clk 0:01:18]} 20. b3 {[%clk 0:01:59]}  Bc5 {[%clk 0:00:58]} 21. Kf2 {[%clk 0:01:41]}  f6 {[%clk 0:00:56]} 22. Nb1 {[%clk 0:01:32]}  Bxe3+ {[%clk 0:00:53]} 23. Kxe3 {[%clk 0:01:33]}  Nc2+ {[%clk 0:00:53]} 24. Kf2 {[%clk 0:01:32]}  Nd4 {[%clk 0:00:52]} 25. Bf1 {[%clk 0:01:09]}  Rc7 {[%clk 0:00:50]} 26. Rb2 {[%clk 0:00:35]}  Rbc8 {[%clk 0:00:48]} 27. Bd3 {[%clk 0:00:36]}  Rc1 {[%clk 0:00:45]} 28. Rxc1 {[%clk 0:00:32]}  Rxc1 {[%clk 0:00:45]} 29. a4 {[%clk 0:00:32]}  Nd6 {[%clk 0:00:41]} 30. axb5 {[%clk 0:00:23]}  axb5 {[%clk 0:00:42]} 31. Nd2 {[%clk 0:00:16]}  Ra1 {[%clk 0:00:37]} 32. b4 {[%clk 0:00:17]}  Rd1 {[%clk 0:00:34]} 33. Be2 {[%clk 0:00:13]}  Rc1 {[%clk 0:00:31]} 34. Bf1 {[%clk 0:00:03]}  Rc3 {[%clk 0:00:30]} 35. Ke1 {[%clk 0:00:02]}  g5 {[%clk 0:00:30]} 36. Kd1 {[%clk 0:00:02]}  h5 {[%clk 0:00:29]} 37. h3 {[%clk 0:00:02]}  g4 {[%clk 0:00:28]} 38. hxg4 {[%clk 0:00:03]}  hxg4 {[%clk 0:00:29]} 39. Ke1 {[%clk 0:00:02]}  gxf3 {[%clk 0:00:28]} 40. gxf3 {[%clk 0:00:03]}  Nxf3+ {[%clk 0:00:28]} 41. Nxf3 {[%clk 0:00:04]}  Rxf3 {[%clk 0:00:29]} 42. Bg2 {[%clk 0:00:04]}  Re3+ {[%clk 0:00:27]} 43. Kf2 {[%clk 0:00:04]}  Rc3 {[%clk 0:00:27]} 44. Rd2 {[%clk 0:00:04]}  Ra3 {[%clk 0:00:25]} 45. Rc2 {[%clk 0:00:03]}  Nc4 {[%clk 0:00:24]} 46. Nb7 {[%clk 0:00:02]}  Kf7 {[%clk 0:00:19]} 47. Nc5 {[%clk 0:00:01]}  Ne3 {[%clk 0:00:17]} 0-1


[Site "https://www.chess.com"]

[Event "Titled Tuesday Blitz July 27 2021"]
[White "Nakamura, Hikaru"]
[Black "Sarana, Alexey"]
[WhiteFideId "2016192"]
[BlackFideId "24133795"]
[WhiteElo "2900"]
[BlackElo "2646"]
[Result "1-0"]
[Round "09"]
[TimeControl "180+1"]
[Date "2021.07.27"]
[WhiteClock "0:00:25"]
[BlackClock "0:00:06"]

1. e4 {[%clk 0:03:00]}  e5 {[%clk 0:03:00]} 2. Nf3 {[%clk 0:02:59]}  Nc6 {[%clk 0:03:00]} 3. Bb5 {[%clk 0:02:59]}  a6 {[%clk 0:03:00]} 4. Ba4 {[%clk 0:02:59]}  Nf6 {[%clk 0:03:01]} 5. O-O {[%clk 0:02:57]}  Nxe4 {[%clk 0:03:01]} 6. d4 {[%clk 0:02:57]}  b5 {[%clk 0:03:01]} 7. Bb3 {[%clk 0:02:58]}  d5 {[%clk 0:03:02]} 8. dxe5 {[%clk 0:02:58]}  Be6 {[%clk 0:03:02]} 9. Nbd2 {[%clk 0:02:59]}  Nc5 {[%clk 0:03:02]} 10. c3 {[%clk 0:02:59]}  d4 {[%clk 0:03:02]} 11. Bxe6 {[%clk 0:02:59]}  Nxe6 {[%clk 0:03:03]} 12. cxd4 {[%clk 0:02:59]}  Ncxd4 {[%clk 0:03:03]} 13. a4 {[%clk 0:03:00]}  Bb4 {[%clk 0:03:02]} 14. axb5 {[%clk 0:02:59]}  Nxb5 {[%clk 0:03:02]} 15. Qa4 {[%clk 0:02:59]}  c5 {[%clk 0:03:00]} 16. Ne4 {[%clk 0:02:47]}  O-O {[%clk 0:02:58]} 17. Rd1 {[%clk 0:02:46]}  Qc7 {[%clk 0:02:57]} 18. Be3 {[%clk 0:02:45]}  Rfb8 {[%clk 0:02:37]} 19. Qc2 {[%clk 0:02:34]}  Rd8 {[%clk 0:01:50]} 20. Neg5 {[%clk 0:02:09]}  Nf8 {[%clk 0:01:49]} 21. Rxd8 {[%clk 0:01:34]}  Rxd8 {[%clk 0:01:37]} 22. Rxa6 {[%clk 0:01:33]}  Qb7 {[%clk 0:01:37]} 23. Ra1 {[%clk 0:01:32]}  Nd4 {[%clk 0:01:33]} 24. Bxd4 {[%clk 0:01:26]}  cxd4 {[%clk 0:01:34]} 25. Qb3 {[%clk 0:01:20]}  d3 {[%clk 0:01:15]} 26. Rd1 {[%clk 0:01:19]}  h6 {[%clk 0:00:46]} 27. Nxf7 {[%clk 0:01:18]}  Qxf7 {[%clk 0:00:46]} 28. Qxb4 {[%clk 0:01:18]}  Ne6 {[%clk 0:00:46]} 29. Qc4 {[%clk 0:01:16]}  Qf5 {[%clk 0:00:43]} 30. h3 {[%clk 0:00:43]}  Kh8 {[%clk 0:00:42]} 31. Qg4 {[%clk 0:00:43]}  Qf7 {[%clk 0:00:19]} 32. Qc4 {[%clk 0:00:43]}  Qf5 {[%clk 0:00:18]} 33. Nh4 {[%clk 0:00:43]}  Qh5 {[%clk 0:00:18]} 34. Rd2 {[%clk 0:00:38]}  Nd4 {[%clk 0:00:15]} 35. g3 {[%clk 0:00:25]}  Qxe5 {[%clk 0:00:06]} 36. Ng6+ {[%clk 0:00:25]} 1-0


[Site "https://www.chess.com"]

[Event "Titled Tuesday Blitz July 27 2021"]
[White "Onyshchuk, Volodymyr"]
[Black "Oparin, Grigoriy"]
[WhiteFideId "14114038"]
[BlackFideId "24125890"]
[WhiteElo "2603"]
[BlackElo "2628"]
[Result "1-0"]
[Round "09"]
[TimeControl "180+1"]
[Date "2021.07.27"]
[WhiteClock "0:00:11"]
[BlackClock "0:00:11"]

1. Nf3 {[%clk 0:03:00]}  Nf6 {[%clk 0:02:59]} 2. g3 {[%clk 0:03:01]}  d5 {[%clk 0:02:59]} 3. Bg2 {[%clk 0:03:01]}  c5 {[%clk 0:03:00]} 4. O-O {[%clk 0:03:01]}  g6 {[%clk 0:03:00]} 5. d3 {[%clk 0:03:01]}  Bg7 {[%clk 0:03:00]} 6. Nc3 {[%clk 0:03:01]}  O-O {[%clk 0:03:00]} 7. e4 {[%clk 0:03:01]}  Nc6 {[%clk 0:02:59]} 8. h3 {[%clk 0:02:58]}  dxe4 {[%clk 0:02:59]} 9. dxe4 {[%clk 0:02:58]}  Qc7 {[%clk 0:02:59]} 10. Bf4 {[%clk 0:02:55]}  e5 {[%clk 0:02:58]} 11. Bg5 {[%clk 0:02:55]}  Be6 {[%clk 0:02:57]} 12. Bxf6 {[%clk 0:02:49]}  Bxf6 {[%clk 0:02:57]} 13. Nd5 {[%clk 0:02:49]}  Bxd5 {[%clk 0:02:58]} 14. exd5 {[%clk 0:02:47]}  Nd4 {[%clk 0:02:58]} 15. Nd2 {[%clk 0:02:46]}  Bg7 {[%clk 0:02:58]} 16. a4 {[%clk 0:02:43]}  Nf5 {[%clk 0:02:57]} 17. c3 {[%clk 0:02:29]}  Nd6 {[%clk 0:02:58]} 18. a5 {[%clk 0:02:23]}  f5 {[%clk 0:02:58]} 19. Qa4 {[%clk 0:02:23]}  e4 {[%clk 0:02:56]} 20. Rfe1 {[%clk 0:02:22]}  a6 {[%clk 0:02:52]} 21. f4 {[%clk 0:02:14]}  Rae8 {[%clk 0:02:46]} 22. Nf1 {[%clk 0:02:13]}  h6 {[%clk 0:02:41]} 23. Ne3 {[%clk 0:02:13]}  g5 {[%clk 0:02:40]} 24. Rf1 {[%clk 0:02:07]}  Bf6 {[%clk 0:02:34]} 25. Qd1 {[%clk 0:01:58]}  Kh7 {[%clk 0:02:33]} 26. Qh5 {[%clk 0:01:57]}  Qg7 {[%clk 0:02:34]} 27. g4 {[%clk 0:01:47]}  gxf4 {[%clk 0:02:22]} 28. Rxf4 {[%clk 0:01:32]}  Bg5 {[%clk 0:02:20]} 29. Nxf5 {[%clk 0:01:31]}  Nxf5 {[%clk 0:02:18]} 30. Rxf5 {[%clk 0:01:31]}  e3 {[%clk 0:02:15]} 31. d6 {[%clk 0:00:50]}  Re5 {[%clk 0:01:44]} 32. Raf1 {[%clk 0:00:40]}  Rfxf5 {[%clk 0:01:42]} 33. gxf5 {[%clk 0:00:38]}  Bf6 {[%clk 0:01:23]} 34. Qf3 {[%clk 0:00:30]}  Re8 {[%clk 0:00:47]} 35. Re1 {[%clk 0:00:28]}  Bg5 {[%clk 0:00:41]} 36. Qxb7 {[%clk 0:00:24]}  Qxb7 {[%clk 0:00:41]} 37. Bxb7 {[%clk 0:00:23]}  Rd8 {[%clk 0:00:42]} 38. Bxa6 {[%clk 0:00:19]}  Rxd6 {[%clk 0:00:42]} 39. Be2 {[%clk 0:00:18]}  Rd2 {[%clk 0:00:40]} 40. a6 {[%clk 0:00:12]}  Bh4 {[%clk 0:00:33]} 41. Ra1 {[%clk 0:00:11]}  Rxe2 {[%clk 0:00:11]} 42. a7 {[%clk 0:00:11]} 1-0


[Site "https://www.chess.com"]

[Event "Titled Tuesday Blitz July 27 2021"]
[White "Petrovskyi, Vadym"]
[Black "Willow, Jonah B"]
[WhiteFideId "14165210"]
[BlackFideId "438804"]
[WhiteElo "2305"]
[BlackElo "2261"]
[Result "1/2-1/2"]
[Round "09"]
[TimeControl "180+1"]
[Date "2021.07.27"]
[WhiteClock "0:00:06"]
[BlackClock "0:00:12"]

1. e4 {[%clk 0:03:00]}  c5 {[%clk 0:03:00]} 2. Nf3 {[%clk 0:02:58]}  Nc6 {[%clk 0:02:59]} 3. d4 {[%clk 0:02:58]}  cxd4 {[%clk 0:03:00]} 4. Nxd4 {[%clk 0:02:59]}  g6 {[%clk 0:03:00]} 5. c4 {[%clk 0:02:58]}  Nf6 {[%clk 0:02:59]} 6. Nc3 {[%clk 0:02:57]}  d6 {[%clk 0:03:00]} 7. Be2 {[%clk 0:02:56]}  Nxd4 {[%clk 0:03:00]} 8. Qxd4 {[%clk 0:02:56]}  Bg7 {[%clk 0:03:01]} 9. Be3 {[%clk 0:02:57]}  O-O {[%clk 0:03:00]} 10. Qd2 {[%clk 0:02:56]}  a5 {[%clk 0:02:59]} 11. O-O {[%clk 0:02:55]}  a4 {[%clk 0:02:58]} 12. f3 {[%clk 0:02:52]}  Qa5 {[%clk 0:02:54]} 13. Rfc1 {[%clk 0:02:51]}  Be6 {[%clk 0:02:52]} 14. Rab1 {[%clk 0:02:36]}  Rfc8 {[%clk 0:02:50]} 15. b4 {[%clk 0:02:35]}  axb3 {[%clk 0:02:51]} 16. axb3 {[%clk 0:02:36]}  Qb4 {[%clk 0:02:50]} 17. Kh1 {[%clk 0:02:29]}  Nd7 {[%clk 0:02:33]} 18. Qc2 {[%clk 0:02:04]}  Bxc3 {[%clk 0:02:02]} 19. Qxc3 {[%clk 0:02:02]}  Qxc3 {[%clk 0:02:03]} 20. Rxc3 {[%clk 0:02:02]}  b5 {[%clk 0:02:04]} 21. h3 {[%clk 0:01:28]}  Ra3 {[%clk 0:01:41]} 22. Bd4 {[%clk 0:00:52]}  bxc4 {[%clk 0:01:15]} 23. Bxc4 {[%clk 0:00:51]}  Bxc4 {[%clk 0:01:15]} 24. Rxc4 {[%clk 0:00:51]}  Rxc4 {[%clk 0:00:39]} 25. bxc4 {[%clk 0:00:52]}  Ra4 {[%clk 0:00:34]} 26. Rb7 {[%clk 0:00:51]}  Rxc4 {[%clk 0:00:23]} 27. Bb2 {[%clk 0:00:42]}  Rc2 {[%clk 0:00:18]} 28. Ba3 {[%clk 0:00:34]}  Rc3 {[%clk 0:00:08]} 29. Bxd6 {[%clk 0:00:34]}  exd6 {[%clk 0:00:07]} 30. Rxd7 {[%clk 0:00:34]}  Rd3 {[%clk 0:00:07]} 31. e5 {[%clk 0:00:27]}  d5 {[%clk 0:00:06]} 32. f4 {[%clk 0:00:24]}  Kf8 {[%clk 0:00:07]} 33. Kg1 {[%clk 0:00:20]}  Ke8 {[%clk 0:00:06]} 34. Ra7 {[%clk 0:00:20]}  Rd2 {[%clk 0:00:05]} 35. Kf1 {[%clk 0:00:17]}  h5 {[%clk 0:00:05]} 36. g3 {[%clk 0:00:13]}  Rh2 {[%clk 0:00:04]} 37. Rb7 {[%clk 0:00:11]}  Rd2 {[%clk 0:00:02]} 38. Ra7 {[%clk 0:00:07]}  Rc2 {[%clk 0:00:02]} 39. Ra4 {[%clk 0:00:07]}  Ke7 {[%clk 0:00:01]} 40. Ra6 {[%clk 0:00:07]}  Ke8 {[%clk 0:00:02]} 41. Rd6 {[%clk 0:00:07]}  Rd2 {[%clk 0:00:03]} 42. g4 {[%clk 0:00:07]}  hxg4 {[%clk 0:00:03]} 43. hxg4 {[%clk 0:00:08]}  Rd4 {[%clk 0:00:04]} 44. f5 {[%clk 0:00:05]}  gxf5 {[%clk 0:00:04]} 45. gxf5 {[%clk 0:00:06]}  Rf4+ {[%clk 0:00:04]} 46. Ke2 {[%clk 0:00:07]}  Rxf5 {[%clk 0:00:05]} 47. Rxd5 {[%clk 0:00:07]}  Ke7 {[%clk 0:00:06]} 48. Ke3 {[%clk 0:00:08]}  Ke6 {[%clk 0:00:06]} 49. Ke4 {[%clk 0:00:08]}  Rh5 {[%clk 0:00:05]} 50. Rd6+ {[%clk 0:00:07]}  Ke7 {[%clk 0:00:06]} 51. Ra6 {[%clk 0:00:07]}  Rh4+ {[%clk 0:00:06]} 52. Kd5 {[%clk 0:00:08]}  Rh1 {[%clk 0:00:06]} 53. Ra7+ {[%clk 0:00:08]}  Kf8 {[%clk 0:00:07]} 54. Ra5 {[%clk 0:00:04]}  Kg7 {[%clk 0:00:07]} 55. Ra7 {[%clk 0:00:04]}  Rd1+ {[%clk 0:00:07]} 56. Ke4 {[%clk 0:00:04]}  Re1+ {[%clk 0:00:08]} 57. Kf4 {[%clk 0:00:04]}  Rf1+ {[%clk 0:00:09]} 58. Kg4 {[%clk 0:00:04]}  Re1 {[%clk 0:00:10]} 59. Kf5 {[%clk 0:00:04]}  Rf1+ {[%clk 0:00:10]} 60. Kg5 {[%clk 0:00:04]}  Re1 {[%clk 0:00:11]} 61. Kf4 {[%clk 0:00:05]}  Rf1+ {[%clk 0:00:11]} 62. Ke4 {[%clk 0:00:05]}  Re1+ {[%clk 0:00:12]} 63. Kf4 {[%clk 0:00:06]} 1/2-1/2


[Site "https://www.chess.com"]